bitfinex-derivatives/quotes_BNBF0:USTF0_20250326
["timestamp","ask_amount","ask_price","bid_price","bid_amount"]
[1742961023518,0.27687718,628.9,628.13,1.18608911]
[1742961023818,0.27687718,628.9,628.14,0.2711198]
[1742961024017,0.452,628.89,628.14,0.2711198]
[1742961024816,0.452,628.89,628.13,1.18608911]
[1742961025611,0.452,628.89,628.14,1.18608911]
[1742961027516,0.27687718,628.88,628.12,1.18608911]
[1742961029220,0.452,628.89,628.12,1.18608911]
[1742961029518,0.27688268,628.87,628.12,1.18608911]
[1742961030118,0.27688268,628.87,628.08,1.18608911]
[1742961031918,0.27688268,628.87,628.1,1.18608911]
[1742961032321,0.452,628.89,628.1,1.18608911]
[1742961032621,0.27688489,628.86,628.1,1.18608911]
[1742961034620,0.27688489,628.86,628.06,1.18608911]
[1742961035322,0.31800546,628.92,628.06,1.18608911]
[1742961036325,0.31800546,628.92,628.11,1.18608911]
[1742961036525,0.27679679,628.91,628.11,1.18608911]
[1742961037627,0.452,628.9,628.11,1.18608911]
[1742961038730,0.601,628.89,628.11,1.18608911]
[1742961039330,0.601,628.89,628.17,1.18608911]
[1742961039532,0.27688378,628.88,628.17,1.18608911]
[1742961041230,0.601,628.89,628.17,1.18608911]
[1742961041831,0.601,628.89,628.18,1.18608911]
[1742961042424,0.27687607,628.88,628.18,1.18608911]
[1742961044235,0.601,628.89,628.18,1.18608911]
[1742961044535,0.601,628.89,628.22,1.18608911]
[1742961045530,0.27687167,628.88,628.22,1.18608911]
[1742961046744,0.27687167,628.88,627.81,0.27687167]
[1742961046745,0.27687167,628.88,628.1,1.18608911]
[1742961047238,0.601,628.89,628.1,1.18608911]
[1742961048532,0.27687828,628.88,628.1,1.18608911]
[1742961050438,0.601,628.89,628.1,1.18608911]
[1742961051140,0.601,628.89,628.09,1.18608911]
[1742961051640,0.27687828,628.88,628.09,1.18608911]
[1742961053339,0.31800546,628.92,628.09,1.18608911]
[1742961054341,0.452,628.91,628.09,1.18608911]
[1742961054541,0.72876597,628.91,628.09,1.18608911]
[1742961056343,0.452,628.91,628.08,1.18608911]
[1742961056736,0.869,628.9,628.08,1.18608911]
[1742961057745,0.59492204,628.89,628.08,1.18608911]
[1742961058243,0.59492204,628.89,628.17,1.18608911]
[1742961058445,0.31802569,628.88,628.17,1.18608911]
[1742961060646,0.2768915,628.87,628.17,1.18608911]
[1742961060848,0.31803581,628.86,628.17,1.18608911]
[1742961063045,0.31803581,628.86,628.16,1.18608911]
[1742961063446,0.27691132,628.85,628.16,1.18608911]
[1742961063650,0.31804592,628.84,628.16,1.18608911]
[1742961065951,0.31804592,628.84,627.58,1.18608911]
[1742961066647,0.27697634,628.83,627.59,0.27697634]
[1742961066847,0.31805604,628.82,627.59,0.27697634]
[1742961067956,0.31805604,628.82,627.6,1.18608911]
[1742961068548,0.27698185,628.81,627.61,0.27119583]
[1742961068753,0.31806615,628.8,627.61,0.27119583]
[1742961069958,0.31806615,628.8,627.83,1.18608911]
[1742961071061,0.29256378,628.79,627.83,1.18608911]
[1742961071654,0.27705021,628.78,627.83,1.18608911]
[1742961071853,0.29256378,628.77,627.82,1.18608911]
[1742961072058,0.31809145,628.75,627.82,1.18608911]
[1742961072561,0.2925508,628.74,627.82,1.18608911]
[1742961072859,0.31810662,628.72,627.82,1.18608911]
[1742961073060,0.2925508,628.71,627.82,1.18608911]
[1742961073260,0.3181218,628.69,627.82,1.18608911]
[1742961073462,0.2925508,628.68,627.82,1.18608911]
[1742961073662,0.31813698,628.66,627.82,1.18608911]
[1742961073962,0.2925508,628.65,627.82,1.18608911]
[1742961074158,0.31815217,628.63,627.82,1.18608911]
[1742961075164,0.31815217,628.63,627.22,0.27705793]
[1742961075361,0.31815217,628.63,627.23,0.27136958]
[1742961075664,0.27705903,628.62,627.23,0.27136958]
[1742961075863,0.31816735,628.6,627.23,0.27136958]
[1742961077558,0.31816735,628.6,627.08,0.27136958]
[1742961077761,0.2771175,628.59,627.22,0.2771175]
[1742961077956,0.2771175,628.59,627.09,0.59029517]
[1742961077957,0.31817747,628.58,627.23,0.27136169]
[1742961078164,0.31817747,628.58,627.24,0.27136169]
[1742961078363,0.31817747,628.58,627.25,0.27136169]
[1742961078561,0.31817747,628.58,627.1,0.27136169]
[1742961078760,0.31817747,628.58,627.11,0.31892331]
[1742961078964,0.31817747,628.58,627.12,0.27136169]
[1742961079367,0.31817747,628.58,627.12,0.54850678]
[1742961079565,0.31817747,628.58,627.13,0.27136169]
[1742961080062,0.31817747,628.58,627.13,0.59027483]
[1742961080260,0.31817747,628.58,627.14,0.59026974]
[1742961080463,0.31817747,628.58,627.15,0.27136169]
[1742961080863,0.31817747,628.58,627.16,0.27136167]
[1742961081165,0.31817747,628.58,627.17,0.27136167]
[1742961081364,0.31817747,628.58,627.18,0.27136167]
[1742961081564,0.31817747,628.58,627.15,0.27136167]
[1742961081766,0.31817747,628.58,627.16,0.27136167]
[1742961082066,0.31817747,628.58,627.17,0.27136167]
[1742961082260,0.31817747,628.58,627.14,0.31890805]
[1742961082465,0.31817747,628.58,627.15,0.27135962]
[1742961083464,1.13717747,628.58,627.15,0.27135962]
[1742961084568,0.2771484,628.57,627.15,0.27135962]
[1742961084770,0.31819266,628.55,627.15,0.27135962]
[1742961087364,0.2771484,628.54,627.15,0.27135962]
[1742961087565,0.31820279,628.53,627.15,0.27135962]
[1742961089668,0.27715281,628.52,627.15,0.27135962]
[1742961089867,0.31821291,628.51,627.15,0.27135962]
[1742961090274,0.31821291,628.51,627.16,0.27137191]
[1742961090475,0.31821291,628.51,627.15,0.27137191]
[1742961091383,0.31821291,628.51,627.16,0.2713777]
[1742961091674,0.31821291,628.51,627.17,0.2713777]
[1742961091874,0.31821291,628.51,627.14,0.59606086]
[1742961092075,0.31821291,628.51,627.15,0.27137352]
[1742961092673,0.27715502,628.5,627.15,0.27137352]
[1742961092869,0.31822304,628.49,627.15,0.27137352]
[1742961096581,0.27714178,628.48,627.15,0.27137352]
[1742961096880,0.31823316,628.47,627.15,0.27137352]
[1742961098080,0.452,628.46,627.15,0.27137352]
[1742961098282,0.31824329,628.45,627.15,0.27137352]
[1742961099477,0.27715502,628.44,627.15,0.27137352]
[1742961099678,0.31825342,628.43,627.15,0.27137352]
[1742961100079,0.31825342,628.43,627.17,1.18608911]
[1742961100282,0.31825342,628.43,627.18,0.27137222]
[1742961101581,0.27715392,628.42,627.18,0.27137222]
[1742961101881,0.31826355,628.41,627.18,0.27137222]
[1742961102080,0.31826355,628.41,627.22,1.18608911]
[1742961102379,0.31826355,628.41,627.23,0.27137222]
[1742961103274,0.31826355,628.41,627.22,1.18608911]
[1742961103479,0.31826355,628.41,627.23,0.27137176]
[1742961104282,0.31826355,628.41,627.37,1.18608911]
[1742961104581,0.31826355,628.41,627.38,0.27137176]
[1742961104777,0.31826355,628.41,627.37,1.18608911]
[1742961104984,0.31826355,628.41,627.38,0.27137257]
[1742961105482,0.31826355,628.41,627.48,1.18608911]
[1742961105782,0.27712964,628.4,627.48,1.18608911]
[1742961105981,0.31827368,628.39,627.48,1.18608911]
[1742961107478,0.31827368,628.39,627.59,1.18608911]
[1742961108779,0.27711198,628.38,627.59,1.18608911]
[1742961108982,0.31828381,628.37,627.59,1.18608911]
[1742961110484,0.31828381,628.37,627.63,1.18608911]
[1742961111684,0.27710757,628.36,627.63,1.18608911]
[1742961111881,0.59539644,628.36,627.63,1.18608911]
[1742961112986,0.59539644,628.36,627.69,1.18608911]
[1742961113184,0.781,628.35,627.69,1.18608911]
[1742961113686,0.31829901,628.34,627.69,1.18608911]
[1742961114684,0.27712853,628.33,627.69,1.18608911]
[1742961114886,0.31830914,628.32,627.69,1.18608911]
[1742961115989,0.31830914,628.32,627.66,1.18608911]
[1742961117581,0.27713184,628.31,627.66,1.18608911]
[1742961117786,0.31831927,628.3,627.66,1.18608911]
[1742961118081,0.31831927,628.3,627.54,1.18608911]
[1742961120491,0.452,628.29,627.54,1.18608911]
[1742961120784,1.04746943,628.29,627.54,1.18608911]
[1742961122286,0.77032434,628.29,627.54,1.18608911]
[1742961122487,0.77032434,628.29,619.65,0.58513145]
[1742961122488,0.27713847,628.28,627.45,1.18608911]
[1742961124493,0.27713847,628.28,627.48,1.18608911]
[1742961128203,0.27713847,628.28,627.46,1.18608911]
[1742961128402,0.27713847,628.28,627.47,0.27140276]
[1742961129203,0.27713847,628.28,627.46,1.18608911]
[1742961130503,0.27713847,628.28,627.51,1.18608911]
[1742961131303,0.77032434,628.29,627.51,1.18608911]
[1742961131502,0.31832434,628.29,627.51,1.18608911]
[1742961131902,0.88,628.28,627.51,1.18608911]
[1742961132605,0.27714288,628.27,627.51,1.18608911]
[1742961132805,0.27714288,628.27,627.53,1.18608911]
[1742961134502,0.451,628.26,627.53,1.18608911]
[1742961135306,0.451,628.26,627.3,1.18608911]
[1742961135307,0.451,628.26,627.56,1.18608911]
[1742961137510,0.451,628.26,627.61,1.18608911]
[1742961138704,0.27712964,628.25,627.61,1.18608911]
[1742961139612,0.27712964,628.25,627.62,1.18608911]
[1742961140214,0.451,628.26,627.62,1.18608911]
[1742961140610,0.27713074,628.24,627.62,1.18608911]
[1742961142914,0.27713074,628.24,627.66,1.18608911]
[1742961143414,0.451,628.26,627.66,1.18608911]
[1742961143816,0.27712191,628.23,627.66,1.18608911]
[1742961146209,0.451,628.26,627.66,1.18608911]
[1742961147721,0.27710867,628.25,627.56,1.18608911]
[1742961149318,0.451,628.26,627.56,1.18608911]
[1742961149715,0.27712191,628.25,627.56,1.18608911]
[1742961152721,0.27712191,628.25,627.57,0.27136707]
[1742961154124,0.451,628.24,627.57,0.27136707]
[1742961154728,0.451,628.24,627.7,1.18608911]
[1742961156726,0.27710757,628.23,627.7,1.18608911]
[1742961158125,0.663,628.22,627.7,1.18608911]
[1742961159424,0.663,628.22,627.64,1.18608911]
[1742961164929,0.663,628.22,627.44,1.18608911]
[1742961164930,0.663,628.22,627.6,1.18608911]
[1742961167135,0.663,628.22,627.62,1.18608911]
[1742961169141,0.663,628.22,627.63,1.18608911]
[1742961171640,0.663,628.22,627.52,1.18608911]
[1742961174042,0.663,628.22,627.51,1.18608911]
[1742961176239,0.663,628.22,627.52,1.18608911]
[1742961178142,0.451,628.21,627.52,1.18608911]
[1742961179341,0.451,628.21,627.54,1.18608911]
[1742961180943,0.451,628.21,627.55,1.18608911]
[1742961183143,0.451,628.21,627.57,1.18608911]
[1742961184939,0.775,628.2,627.57,1.18608911]
[1742961185743,0.27715502,628.19,627.64,1.18608911]
[1742961188344,0.775,628.2,627.64,1.18608911]
[1742961188542,0.27716164,628.18,627.33,1.18608911]
[1742961190352,0.27716164,628.18,627.34,0.27144005]
[1742961190550,0.27716164,628.18,627.29,0.27144005]
[1742961190849,0.27716164,628.18,627.28,1.18608911]
[1742961191050,0.27716164,628.18,627.29,0.27143975]
[1742961191545,0.775,628.2,627.29,0.27143975]
[1742961192251,0.775,628.2,627.37,1.18608911]
[1742961192547,0.27719476,628.19,627.37,1.18608911]
[1742961194351,0.775,628.2,627.35,1.18608911]
[1742961195646,0.27718703,628.19,627.35,1.18608911]
[1742961196948,0.27718703,628.19,627.34,1.18608911]
[1742961199455,0.27718703,628.19,627.3,1.18608911]
[1742961199755,0.27718703,628.19,627.31,0.27144082]
[1742961200256,0.27718703,628.19,627.32,0.2714426]
[1742961200554,0.27718703,628.19,627.33,0.2714426]
[1742961200752,0.27718703,628.19,627.34,0.2714426]
[1742961200951,0.27718703,628.19,627.3,1.18608911]
[1742961200952,0.31838008,628.18,627.31,0.2714426]
[1742961201151,0.31838008,628.18,627.32,0.27144315]
[1742961201354,0.31838008,628.18,627.31,0.27144315]
[1742961201553,0.31838008,628.18,627.32,0.27144315]
[1742961201756,0.31838008,628.18,627.3,1.18608911]
[1742961201951,0.31838008,628.18,627.32,1.18608911]
[1742961204257,0.31838008,628.18,627.27,1.18608911]
[1742961204457,0.31838008,628.18,627.28,0.27144441]
[1742961204658,0.27720249,628.17,627.28,0.27144441]
[1742961206359,0.31838008,628.18,627.28,0.27144441]
[1742961206658,0.31838008,628.18,627.27,1.18608911]
[1742961206659,0.31838008,628.18,627.29,0.27144794]
[1742961206859,0.31838008,628.18,627.28,0.27144794]
[1742961207062,0.451,628.17,627.29,0.27144794]
[1742961207259,0.451,628.17,627.28,0.27144794]
[1742961207456,0.451,628.17,627.29,0.27144794]
[1742961207657,0.27720911,628.16,627.28,0.27144794]
[1742961207857,0.27720911,628.16,627.29,0.27144794]
[1742961208058,0.27720911,628.16,627.3,0.27144395]
[1742961208360,0.27720911,628.16,627.31,0.27144395]
[1742961208555,0.27720911,628.16,627.27,1.18608911]
[1742961208755,0.27720911,628.16,627.28,0.27144398]
[1742961208960,0.27720911,628.16,627.3,1.18608911]
[1742961209157,0.27720911,628.16,627.31,0.27144398]
[1742961209357,0.451,628.17,627.31,0.27144398]
[1742961209957,0.451,628.17,627.3,1.18608911]
[1742961210160,0.451,628.17,627.31,0.27144618]
[1742961210557,0.27721463,628.16,627.31,0.27144618]
[1742961211063,0.27721463,628.16,627.31,1.18608911]
[1742961211463,0.27721463,628.16,627.32,0.27144691]
[1742961212365,0.451,628.17,627.32,0.27144691]
[1742961213164,0.451,628.17,627.36,1.18608911]
[1742961213562,0.27720801,628.16,627.36,1.18608911]
[1742961215268,0.451,628.17,627.36,1.18608911]
[1742961216363,0.451,628.17,627.34,1.18608911]
[1742961216566,1.17420801,628.16,627.35,0.27144451]
[1742961218271,0.897,628.16,627.35,0.27144451]
[1742961219574,0.27719917,628.15,627.35,0.27144451]
[1742961219975,0.27719917,628.15,627.43,1.18608911]
[1742961221475,0.897,628.16,627.43,1.18608911]
[1742961221876,0.451,628.15,627.43,1.18608911]
[1742961222372,0.451,628.15,627.48,1.18608911]
[1742961222577,0.27718924,628.14,627.48,1.18608911]
[1742961224378,0.451,628.15,627.46,1.18608911]
[1742961225579,0.27718593,628.14,627.46,1.18608911]
[1742961226681,0.27718593,628.14,627.49,1.18608911]
[1742961227479,0.451,628.15,627.49,1.18608911]
[1742961228580,0.27717709,628.14,627.49,1.18608911]
[1742961229979,0.27717709,628.14,627.48,1.18608911]
[1742961230379,0.451,628.15,627.48,1.18608911]
[1742961231880,0.27717709,628.14,627.48,1.18608911]
[1742961232080,0.27717709,628.14,627.51,1.18608911]
[1742961233378,0.583,628.13,627.51,1.18608911]
[1742961234584,0.2771793,628.12,627.51,1.18608911]
[1742961234786,0.2771793,628.12,627.53,1.18608911]
[1742961236284,0.583,628.13,627.53,1.18608911]
[1742961236885,0.583,628.13,627.33,1.18608911]
[1742961236886,0.583,628.13,627.57,1.18608911]
[1742961237683,0.27717268,628.12,627.57,1.18608911]
[1742961239184,0.27717268,628.12,627.59,1.18608911]
[1742961239379,0.583,628.13,627.59,1.18608911]
[1742961239584,0.27717047,628.11,627.59,1.18608911]
[1742961242090,0.27717047,628.11,627.58,1.18608911]
[1742961242290,0.583,628.13,627.58,1.18608911]
[1742961242786,0.27717158,628.1,627.58,1.18608911]
[1742961245196,0.27717158,628.1,627.55,1.18608911]
[1742961245393,0.451,628.15,627.55,1.18608911]
[1742961245987,0.31838008,628.18,627.55,1.18608911]
[1742961246590,0.27709213,628.17,627.55,1.18608911]
[1742961248290,0.31838515,628.17,627.55,1.18608911]
[1742961248700,0.573,628.16,627.55,1.18608911]
[1742961249608,0.72819145,628.15,627.55,1.18608911]
[1742961250206,0.72819145,628.15,627.34,1.18608911]
[1742961251305,0.451,628.15,627.34,1.18608911]
[1742961252705,0.27720801,628.14,627.34,1.18608911]
[1742961252903,0.27720801,628.14,627.33,1.18608911]
[1742961254310,0.451,628.15,627.33,1.18608911]
[1742961254804,0.27720911,628.14,627.33,1.18608911]
[1742961255009,0.27720911,628.14,627.32,1.18608911]
[1742961256813,0.27720911,628.14,627.33,1.45754227]
[1742961257107,0.27720911,628.14,627.33,1.18608911]
[1742961257313,0.451,628.15,627.33,1.18608911]
[1742961258711,0.27720911,628.14,627.33,1.18608911]
[1742961258913,0.27720911,628.14,627.44,1.18608911]
[1742961260307,0.451,628.15,627.44,1.18608911]
[1742961260710,0.451,628.15,627.42,1.18608911]
[1742961261613,0.27719917,628.14,627.42,1.18608911]
[1742961262608,0.27719917,628.14,627.15,0.98693098]
[1742961262609,0.27719917,628.14,627.41,1.18608911]
[1742961263415,0.451,628.15,627.41,1.18608911]
[1742961264715,0.27719917,628.14,627.41,1.18608911]
[1742961266415,0.83,628.13,627.41,1.18608911]
[1742961267616,0.27720359,628.12,627.41,1.18608911]
[1742961268514,0.27720359,628.12,627.42,1.18608911]
[1742961269414,0.451,628.11,627.42,1.18608911]
[1742961270814,0.451,628.11,627.43,1.18608911]
[1742961272718,0.27720249,628.1,627.43,1.18608911]
[1742961273221,0.27720249,628.1,627.15,0.98693098]
[1742961273222,0.27720249,628.1,627.44,1.18608911]
[1742961275314,0.27720249,628.1,627.41,1.18608911]
[1742961275518,0.451,628.11,627.41,1.18608911]
[1742961276616,0.27720359,628.1,627.41,1.18608911]
[1742961278421,0.451,628.11,627.41,1.18608911]
[1742961279715,0.27719697,628.1,627.41,1.18608911]
[1742961280722,0.27719697,628.1,627.43,1.18608911]
[1742961281323,0.451,628.11,627.43,1.18608911]
[1742961282223,0.451,628.11,627.46,1.18608911]
[1742961282629,0.27718703,628.1,627.46,1.18608911]
[1742961284129,0.596,628.09,627.46,1.18608911]
[1742961284428,0.596,628.09,627.52,1.18608911]
[1742961285623,0.27718924,628.08,627.52,1.18608911]
[1742961286630,0.27718924,628.08,627.15,0.98693098]
[1742961286631,0.27718924,628.08,627.46,1.18608911]
[1742961287430,0.596,628.09,627.46,1.18608911]
[1742961288724,0.27719807,628.08,627.46,1.18608911]
[1742961290430,0.596,628.09,627.46,1.18608911]
[1742961291731,0.27719807,628.08,627.46,1.18608911]
[1742961293132,0.27719807,628.08,627.48,1.18608911]
[1742961293529,0.596,628.09,627.48,1.18608911]
[1742961293828,0.27719586,628.07,627.48,1.18608911]
[1742961296335,0.596,628.09,627.48,1.18608911]
[1742961296637,0.451,628.07,627.48,1.18608911]
[1742961296835,0.27720028,628.06,627.48,1.18608911]
[1742961298128,0.27720028,628.06,627.57,1.18608911]
[1742961299430,0.451,628.07,627.57,1.18608911]
[1742961299930,0.27718813,628.05,627.57,1.18608911]
[1742961300737,0.27718813,628.05,627.6,1.18608911]
[1742961305441,0.451,628.07,627.58,1.18608911]
[1742961307844,0.451,628.07,627.46,1.18608911]
[1742961310842,0.451,628.07,627.42,1.18608911]
[1742961313443,0.451,628.07,627.4,1.18608911]
[1742961314144,1.228,628.07,627.4,1.18608911]
[1742961315442,1.228,628.07,627.36,1.18608911]
[1742961317147,1.228,628.07,627.37,0.27140694]
[1742961317744,1.228,628.07,627.38,0.27140694]
[1742961317948,1.228,628.07,627.35,0.27140694]
[1742961318144,1.228,628.07,627.36,0.27140694]
[1742961318448,1.228,628.07,627.37,0.27140694]
[1742961318648,1.228,628.07,627.38,0.27140694]
[1742961318849,1.228,628.07,627.35,0.27140694]
[1742961319251,1.228,628.07,627.5,1.18608911]
[1742961324554,1.228,628.07,627.37,1.18608911]
[1742961329855,1.228,628.07,627.38,0.27139022]
[1742961330061,1.228,628.07,627.38,1.45747933]
[1742961330260,1.228,628.07,627.39,0.27139022]
[1742961330461,1.228,628.07,627.4,0.27138846]
[1742961330661,1.228,628.07,627.41,0.27138846]
[1742961330961,1.228,628.07,627.42,0.27138846]
[1742961331154,1.228,628.07,627.43,0.27138846]
[1742961331359,1.228,628.07,627.44,0.27138846]
[1742961331559,1.228,628.07,627.45,0.27138846]
[1742961331758,1.228,628.07,627.38,1.18608911]
[1742961332962,1.228,628.07,627.6,1.18608911]
[1742961335165,1.228,628.07,627.39,1.18608911]
[1742961338668,1.228,628.07,627.4,0.27138801]
[1742961340162,1.228,628.07,627.39,0.27138801]
[1742961340368,1.228,628.07,627.4,0.27138801]
[1742961340667,1.228,628.07,627.41,0.27138801]
[1742961340867,1.228,628.07,627.42,0.27138801]
[1742961341067,1.228,628.07,627.43,0.27138801]
[1742961341270,1.228,628.07,627.39,0.27138801]
[1742961341469,1.228,628.07,627.4,0.27138801]
[1742961341667,1.228,628.07,627.39,0.27138801]
[1742961341868,1.228,628.07,627.55,1.18608911]
[1742961343367,1.228,628.07,627.58,1.18608911]
[1742961345173,1.228,628.07,627.65,1.18608911]
[1742961347171,1.228,628.07,627.68,1.18608911]
[1742961349567,1.228,628.07,627.69,1.18608911]
[1742961351884,1.228,628.07,627.68,1.18608911]
[1742961353878,1.228,628.07,627.65,1.18608911]
[1742961356887,1.228,628.07,627.64,1.18608911]
[1742961359787,1.228,628.07,627.61,1.18608911]
[1742961362089,1.228,628.07,627.62,1.18608911]
[1742961366783,1.228,628.07,627.64,1.18608911]
[1742961369190,1.228,628.07,627.69,1.18608911]
[1742961371990,1.228,628.07,627.7,1.18608911]
[1742961374792,1.228,628.07,627.69,1.18608911]
[1742961376894,1.228,628.07,627.5,1.18608911]
[1742961382799,1.228,628.07,627.49,1.18608911]
[1742961384904,1.228,628.07,627.5,1.18608911]
[1742961387306,1.228,628.07,627.62,1.18608911]
[1742961389703,1.228,628.07,627.55,1.18608911]
[1742961394117,1.228,628.07,627.54,1.18608911]
[1742961398421,1.228,628.07,627.57,1.18608911]
[1742961401225,1.228,628.07,627.49,1.18608911]
[1742961403223,1.228,628.07,627.45,1.18608911]
[1742961405226,1.228,628.07,627.46,0.27126768]
[1742961406120,1.228,628.07,627.47,0.27124407]
[1742961406323,1.228,628.07,627.48,0.27124407]
[1742961406523,1.228,628.07,627.49,0.27124407]
[1742961406719,1.228,628.07,627.45,0.27124407]
[1742961407724,1.228,628.07,627.46,0.27124407]
[1742961407920,1.228,628.07,627.47,0.27124407]
[1742961408127,1.228,628.07,627.48,0.27124407]
[1742961408325,1.228,628.07,627.49,0.27124407]
[1742961408526,1.228,628.07,627.44,0.27124407]
[1742961408728,1.228,628.07,627.46,0.27710867]
[1742961409031,1.228,628.07,627.47,0.27124407]
[1742961409328,1.228,628.07,627.61,1.18608911]
[1742961409521,1.228,628.07,627.62,0.27124407]
[1742961410925,1.228,628.07,627.61,1.18608911]
[1742961411623,1.228,628.07,627.34,1.18608911]
[1742961411624,1.228,628.07,627.54,1.18608911]
[1742961411827,1.228,628.07,627.55,0.27125448]
[1742961413229,1.228,628.07,627.54,1.18608911]
[1742961413824,1.228,628.07,627.43,1.18608911]
[1742961414024,1.228,628.07,627.44,0.27124619]
[1742961414629,1.228,628.07,627.45,0.27709543]
[1742961414826,1.228,628.07,627.46,0.27124619]
[1742961415234,1.228,628.07,627.45,0.27709543]
[1742961415437,1.228,628.07,627.46,0.27124489]
[1742961416639,1.228,628.07,627.43,0.31876065]
[1742961416640,1.228,628.07,627.44,0.27124489]
[1742961416842,1.228,628.07,627.45,0.27125161]
[1742961417139,1.228,628.07,627.46,0.27125161]
[1742961417440,1.228,628.07,627.47,0.27125161]
[1742961417740,1.228,628.07,627.48,0.27125161]
[1742961417938,1.228,628.07,627.46,0.27125161]
[1742961418135,1.228,628.07,627.45,0.27709985]
[1742961418540,1.228,628.07,627.46,0.27124758]
[1742961419435,1.228,628.07,627.43,0.31876065]
[1742961420342,1.228,628.07,627.44,0.27124072]
[1742961420743,1.228,628.07,627.44,0.54834498]
[1742961420944,1.228,628.07,627.45,0.27124072]
[1742961422643,1.228,628.07,627.44,0.27124072]
[1742961422843,1.228,628.07,627.45,0.27124072]
[1742961423040,1.228,628.07,627.46,0.27124072]
[1742961423239,1.228,628.07,627.44,0.27124072]
[1742961423442,1.228,628.07,627.45,0.27124072]
[1742961423638,1.228,628.07,627.46,0.27124072]
[1742961423841,1.228,628.07,627.44,0.54834057]
[1742961424042,1.228,628.07,627.44,0.27709985]
[1742961424243,1.228,628.07,627.45,0.27124547]
[1742961425346,1.228,628.07,627.46,1.18608911]
[1742961425539,1.228,628.07,627.47,0.27124547]
[1742961427350,1.228,628.07,627.46,1.18608911]
[1742961427649,1.228,628.07,627.47,0.2712448]
[1742961428050,1.228,628.07,627.48,1.18608911]
[1742961428249,1.228,628.07,627.49,0.2712448]
[1742961430050,1.228,628.07,627.5,1.18608911]
[1742961430245,1.228,628.07,627.51,0.2712448]
[1742961432949,1.228,628.07,627.59,1.18608911]
[1742961435348,1.228,628.07,627.43,0.31876065]
[1742961435349,1.228,628.07,627.62,1.18608911]
[1742961437153,1.228,628.07,627.68,1.18608911]
[1742961439755,1.228,628.07,627.73,1.18608911]
[1742961442258,1.228,628.07,627.74,0.27128009]
[1742961442656,1.228,628.07,627.78,1.18608911]
[1742961442862,0.27708882,628.38,627.78,1.18608911]
[1742961443664,2.40564999,629.65,627.78,1.18608911]
[1742961443965,0.27690912,628.38,627.78,1.18608911]
[1742961444159,0.31764687,629.63,627.78,1.18608911]
[1742961444364,0.29242006,629.62,627.78,1.18608911]
[1742961444565,0.317662,629.6,627.78,1.18608911]
[1742961444766,0.29242006,629.59,627.78,1.18608911]
[1742961444965,2.40564999,629.44,627.87,1.18608911]
[1742961445259,0.31775285,629.42,627.87,1.18608911]
[1742961445466,0.29242006,629.41,627.87,1.18608911]
[1742961445665,0.31776799,629.39,627.87,1.18608911]
[1742961445860,0.29242006,629.38,627.87,1.18608911]
[1742961446058,0.31778314,629.36,627.87,1.18608911]
[1742961446264,0.29242178,629.35,627.87,1.18608911]
[1742961446462,0.31779829,629.33,627.87,1.18608911]
[1742961446661,0.29242178,629.32,627.87,1.18608911]
[1742961446966,0.31781344,629.3,627.87,1.18608911]
[1742961447166,0.29242178,629.29,627.87,1.18608911]
[1742961447369,0.31782859,629.27,627.87,1.18608911]
[1742961447764,0.2924192,629.26,627.83,1.18608911]
[1742961448065,0.31784374,629.24,627.83,1.18608911]
[1742961448367,0.2924192,629.23,627.83,1.18608911]
[1742961448567,0.3178589,629.21,627.83,1.18608911]
[1742961448762,0.2924192,629.2,627.83,1.18608911]
[1742961448962,0.31787405,629.18,627.83,1.18608911]
[1742961449268,0.2924192,629.17,627.83,1.18608911]
[1742961449567,0.31788921,629.15,627.83,1.18608911]
[1742961449768,0.2924192,629.14,627.75,1.18608911]
[1742961449963,0.31790437,629.12,627.75,1.18608911]
[1742961450162,0.2924192,629.11,627.75,1.18608911]
[1742961450362,0.31791953,629.09,627.75,1.18608911]
[1742961450565,0.2924192,629.08,627.75,1.18608911]
[1742961450867,0.31793469,629.06,627.75,1.18608911]
[1742961451067,0.2924192,629.05,627.75,1.18608911]
[1742961451666,0.31794985,629.03,627.75,1.18608911]
[1742961451863,0.2924192,629.02,627.75,1.18608911]
[1742961452071,0.31796502,629.0,627.75,1.18608911]
[1742961452270,0.29241001,628.99,627.75,1.18608911]
[1742961452467,0.31798018,628.97,627.72,1.18608911]
[1742961452666,0.29241001,628.96,627.72,1.18608911]
[1742961452870,0.31799535,628.94,627.72,1.18608911]
[1742961453070,0.29240905,628.93,627.72,1.18608911]
[1742961453267,0.31801052,628.91,627.72,1.18608911]